[Event "European Rapid Championship 2021"]
[Site "Katowice"]
[Date "2021.12.18"]
[Round "2.6"]
[White "Bjerre, Jonas Buhl"]
[Black "Tarczykowski, Janusz"]
[Result "1-0"]
[ECO "B04"]
[WhiteElo "2330"]
[BlackElo "1871"]
[Annotator "ChessBase"]
[PlyCount "137"]
[EventDate "2021.12.18"]
[EventType "swiss"]
[EventCountry "POL"]
[SourceTitle "playchess.com"]
[Source "ChessBase"]
[SourceQuality "1"]
[TimeControl "900+10"]

1. e4 {[%emt 0:00:01]} Nf6 {[%emt 0:00:03]} 2. e5 {[%emt 0:00:02]} Nd5 {
[%emt 0:00:01]} 3. d4 {[%emt 0:00:01]} d6 {[%emt 0:00:01]} 4. Nf3 {[%emt 0:00:
02]} dxe5 {[%emt 0:00:01]} 5. Nxe5 {[%emt 0:00:03]} c6 {[%emt 0:00:02]} 6. Bd3
{[%emt 0:00:05]} Nd7 {[%emt 0:00:34]} 7. Nf3 {[%emt 0:00:02]} g6 {[%emt 0:01:
43]} 8. O-O {[%emt 0:00:04]} Bg7 {[%emt 0:00:02]} 9. Re1 {[%emt 0:00:06]} O-O {
[%emt 0:00:05]} 10. a3 {[%emt 0:00:10]} b5 {[%emt 0:02:27]} 11. a4 {[%emt 0:00:
46]} b4 {[%emt 0:00:34]} 12. a5 {[%emt 0:00:07]} c5 {[%emt 0:01:03]} 13. Bc4 {
[%emt 0:00:59]} e6 {[%emt 0:00:33]} 14. Bg5 {[%emt 0:00:18]} Qc7 {[%emt 0:00:
10]} 15. Bxd5 {[%emt 0:00:14]} exd5 {[%emt 0:00:03]} 16. Be7 {[%emt 0:00:08]}
Re8 {[%emt 0:01:17]} 17. dxc5 {[%emt 0:00:15]} Ne5 {[%emt 0:02:11]} 18. Nxe5 {
[%emt 0:00:39]} Rxe7 {[%emt 0:00:27]} 19. Nd3 {[%emt 0:00:09]} Bf5 {[%emt 0:01:
18]} 20. Rxe7 {[%emt 0:01:28]} Qxe7 {[%emt 0:00:01]} 21. Nxb4 {[%emt 0:00:12]}
Qxc5 {[%emt 0:00:51]} 22. Qxd5 {[%emt 0:00:47]} Re8 {[%emt 0:00:06]} 23. Qd2 {
[%emt 0:01:03]} Bxb2 {[%emt 0:02:23]} 24. Ra4 {[%emt 0:01:45]} Bd4 {[%emt 0:00:
15]} 25. g4 {[%emt 0:01:18]} Bxg4 {[%emt 0:01:47]} 26. Nd3 {[%emt 0:00:54]} Qb5
{[%emt 0:00:39]} 27. Rb4 {[%emt 0:00:29]} Qd7 {[%emt 0:00:17]} 28. Qf4 {
[%emt 0:00:15]} Bh3 {[%emt 0:00:39]} 29. Rxd4 {[%emt 0:01:12]} Qb7 {[%emt 0:00:
01]} 30. f3 {[%emt 0:00:35]} Qxb1+ {[%emt 0:00:01]} 31. Kf2 {[%emt 0:00:02]}
Qf1+ {[%emt 0:00:04]} 32. Kg3 {[%emt 0:00:01]} Qg2+ {[%emt 0:00:23]} 33. Kh4 {
[%emt 0:00:01]} Bf5 {[%emt 0:00:12]} 34. Qg3 {[%emt 0:00:13]} Qe2 {[%emt 0:00:
08]} 35. Qf4 {[%emt 0:02:21]} f6 {[%emt 0:00:20]} 36. Kg3 {[%emt 0:00:10]} Bxd3
{[%emt 0:00:09]} 37. cxd3 {[%emt 0:00:13]} Qe1+ {[%emt 0:00:01]} 38. Kh3 {
[%emt 0:00:08]} Qf1+ {[%emt 0:00:04]} 39. Kg3 {[%emt 0:00:01]} Qg1+ {[%emt 0:
00:07]} 40. Kh3 {[%emt 0:00:02]} g5 {[%emt 0:00:15]} 41. Qg4 {[%emt 0:01:40]}
Qf1+ {[%emt 0:00:16]} 42. Qg2 {[%emt 0:00:00]} Qe1 {[%emt 0:00:13]} 43. Qa2+ {
[%emt 0:00:26]} Kh8 {[%emt 0:00:09]} 44. Re4 {[%emt 0:00:35]} Rxe4 {[%emt 0:00:
18]} 45. dxe4 {[%emt 0:00:01]} Qh4+ {[%emt 0:00:04]} 46. Kg2 {[%emt 0:00:01]}
Qf4 {[%emt 0:00:05]} 47. Qf7 {[%emt 0:00:20]} Qd2+ {[%emt 0:00:01]} 48. Kh3 {
[%emt 0:00:02]} Qd6 {[%emt 0:00:03]} 49. Qxa7 {[%emt 0:00:28]} h5 {[%emt 0:00:
18]} 50. Qe3 {[%emt 0:00:18]} Qd7+ {[%emt 0:00:16]} 51. Kg2 {[%emt 0:00:07]} h4
{[%emt 0:00:05]} 52. Qc3 {[%emt 0:00:22]} Qd6 {[%emt 0:00:10]} 53. Qb2 {
[%emt 0:00:19]} Qa6 {[%emt 0:00:04]} 54. Qd2 {[%emt 0:00:15]} Kg7 {[%emt 0:00:
11]} 55. e5 {[%emt 0:00:05]} Kg6 {[%emt 0:00:08]} 56. Qc2+ {[%emt 0:00:18]} f5
{[%emt 0:00:02]} 57. Qd2 {[%emt 0:00:04]} Kh5 {[%emt 0:00:07]} 58. h3 {[%emt 0:
00:22]} Qb5 {[%emt 0:00:06]} 59. Qe1 {[%emt 0:00:11]} Qb2+ {[%emt 0:00:05]} 60.
Kh1 {[%emt 0:00:04]} Qa3 {[%emt 0:00:07]} 61. Qe2 {[%emt 0:00:47]} Qxa5 {
[%emt 0:00:10]} 62. e6 {[%emt 0:00:01]} Qa1+ {[%emt 0:00:08]} 63. Kg2 {[%emt 0:
00:03]} Qa8 {[%emt 0:00:19]} 64. e7 {[%emt 0:00:01]} Qe8 {[%emt 0:00:01]} 65.
Qe6 {[%emt 0:00:02]} f4 {[%emt 0:00:11]} 66. Kh2 {[%emt 0:00:17]} g4 {[%emt 0:
00:06]} 67. Qf5+ {[%emt 0:00:08]} Kh6 {[%emt 0:00:03]} 68. Qf8+ {[%emt 0:00:01]
} Kh7 {[%emt 0:00:15]} 69. Qxe8 {[%emt 0:00:03]} 1-0

[Event "European Rapid Championship 2021"]
[Site "Katowice"]
[Date "2021.12.18"]
[Round "2.7"]
[White "Seemann, Jakub"]
[Black "Druckenthaner, Andreas"]
[Result "1/2-1/2"]
[ECO "A85"]
[WhiteElo "1862"]
[BlackElo "2291"]
[Annotator "ChessBase"]
[PlyCount "89"]
[EventDate "2021.12.18"]
[EventType "swiss"]
[EventCountry "POL"]
[SourceTitle "playchess.com"]
[Source "ChessBase"]
[SourceQuality "1"]
[TimeControl "900+10"]

1. d4 {[%emt 0:00:01]} f5 {[%emt 0:00:02]} 2. c4 {[%emt 0:00:03]} Nf6 {[%emt 0:
00:01]} 3. Nc3 {[%emt 0:00:03]} e6 {[%emt 0:00:02]} 4. Nf3 {[%emt 0:00:03]} d6
{[%emt 0:00:03]} 5. g3 {[%emt 0:00:15]} g6 {[%emt 0:00:02]} 6. Bg2 {[%emt 0:00:
03]} Bg7 {[%emt 0:00:01]} 7. O-O {[%emt 0:00:03]} O-O {[%emt 0:00:01]} 8. b3 {
[%emt 0:00:02]} Ne4 {[%emt 0:00:06]} 9. Bb2 {[%emt 0:00:09]} Nxc3 {[%emt 0:00:
09]} 10. Bxc3 {[%emt 0:00:02]} Nc6 {[%emt 0:00:01]} 11. Qc2 {[%emt 0:00:18]} e5
{[%emt 0:00:02]} 12. dxe5 {[%emt 0:01:21]} dxe5 {[%emt 0:00:02]} 13. Rad1 {
[%emt 0:00:13]} Qe7 {[%emt 0:00:03]} 14. e4 {[%emt 0:00:08]} f4 {[%emt 0:00:07]
} 15. Rd5 {[%emt 0:00:55]} Be6 {[%emt 0:01:14]} 16. Rb5 {[%emt 0:00:45]} b6 {
[%emt 0:01:32]} 17. Qb2 {[%emt 0:03:09]} a6 {[%emt 0:00:55]} 18. Rd5 {[%emt 0:
00:01]} Bxd5 {[%emt 0:01:30]} 19. exd5 {[%emt 0:00:17]} Nd4 {[%emt 0:01:22]}
20. Nxd4 {[%emt 0:03:52]} exd4 {[%emt 0:00:05]} 21. Bxd4 {[%emt 0:00:01]} Rae8
{[%emt 0:01:23]} 22. Bh3 {[%emt 0:00:16]} Bxd4 {[%emt 0:01:35]} 23. Qxd4 {
[%emt 0:00:01]} Qe5 {[%emt 0:00:27]} 24. Qd2 {[%emt 0:00:13]} Rf6 {[%emt 0:01:
05]} 25. Be6+ {[%emt 0:00:10]} Rfxe6 {[%emt 0:00:55]} 26. dxe6 {[%emt 0:00:02]}
Rxe6 {[%emt 0:00:14]} 27. gxf4 {[%emt 0:01:16]} Qf5 {[%emt 0:01:03]} 28. Qd8+ {
[%emt 0:00:26]} Kg7 {[%emt 0:00:03]} 29. Qxc7+ {[%emt 0:01:48]} Kh6 {[%emt 0:
00:01]} 30. f3 {[%emt 0:01:40]} Re2 {[%emt 0:01:07]} 31. Rf2 {[%emt 0:00:14]}
Qb1+ {[%emt 0:01:17]} 32. Kg2 {[%emt 0:00:02]} Rxf2+ {[%emt 0:00:23]} 33. Kxf2
{[%emt 0:00:01]} Qxa2+ {[%emt 0:00:03]} 34. Kg3 {[%emt 0:00:01]} Qxb3 {[%emt 0:
00:19]} 35. Qe7 {[%emt 0:01:06]} Qc3 {[%emt 0:01:28]} 36. Qf8+ {[%emt 0:00:28]}
Kh5 {[%emt 0:00:30]} 37. Qe7 {[%emt 0:00:03]} Kh6 {[%emt 0:00:01]} 38. Kh4 {
[%emt 0:00:35]} Qb2 {[%emt 0:00:31]} 39. Qf8+ {[%emt 0:00:26]} Qg7 {[%emt 0:00:
02]} 40. Qd6 {[%emt 0:00:45]} Qf7 {[%emt 0:00:58]} 41. Qe5 {[%emt 0:00:31]} Qf5
{[%emt 0:00:19]} 42. Qb8 {[%emt 0:00:05]} g5+ {[%emt 0:00:20]} 43. fxg5+ {
[%emt 0:00:06]} Qxg5+ {[%emt 0:00:02]} 44. Kh3 {[%emt 0:00:01]} Qf5+ {[%emt 0:
00:05]} 45. Kg3 {[%emt 0:00:08]} 1/2-1/2

[Event "European Rapid Championship 2021"]
[Site "Katowice"]
[Date "2021.12.18"]
[Round "2.8"]
[White "Milanowski, Jan"]
[Black "Szpar, Milosz"]
[Result "0-1"]
[ECO "A48"]
[WhiteElo "1858"]
[BlackElo "2315"]
[Annotator "ChessBase"]
[PlyCount "80"]
[EventDate "2021.12.18"]
[EventType "swiss"]
[EventCountry "POL"]
[SourceTitle "playchess.com"]
[Source "ChessBase"]
[SourceQuality "1"]
[TimeControl "900+10"]

1. d4 {[%emt 0:00:02]} Nf6 {[%emt 0:00:04]} 2. Nf3 {[%emt 0:00:05]} g6 {
[%emt 0:00:21]} 3. Bf4 {[%emt 0:00:08]} Bg7 {[%emt 0:00:04]} 4. c3 {[%emt 0:00:
05]} b6 {[%emt 0:00:05]} 5. e3 {[%emt 0:00:02]} Bb7 {[%emt 0:00:02]} 6. h3 {
[%emt 0:00:07]} O-O {[%emt 0:00:05]} 7. Be2 {[%emt 0:00:02]} d6 {[%emt 0:00:05]
} 8. O-O {[%emt 0:00:02]} Nbd7 {[%emt 0:00:05]} 9. Nbd2 {[%emt 0:00:07]} c5 {
[%emt 0:00:16]} 10. Bh2 {[%emt 0:00:16]} Qc7 {[%emt 0:00:16]} 11. a4 {[%emt 0:
00:35]} a6 {[%emt 0:00:09]} 12. Re1 {[%emt 0:00:07]} Bc6 {[%emt 0:00:39]} 13.
Qb3 {[%emt 0:01:20]} Qb7 {[%emt 0:00:28]} 14. Bf1 {[%emt 0:00:46]} b5 {[%emt 0:
01:58]} 15. axb5 {[%emt 0:00:13]} axb5 {[%emt 0:00:03]} 16. Rxa8 {[%emt 0:01:
26]} Rxa8 {[%emt 0:00:40]} 17. Ng5 {[%emt 0:00:29]} c4 {[%emt 0:01:30]} 18. Qc2
{[%emt 0:00:29]} h6 {[%emt 0:00:10]} 19. Ngf3 {[%emt 0:00:08]} Ne4 {[%emt 0:00:
03]} 20. Nxe4 {[%emt 0:00:30]} Bxe4 {[%emt 0:00:06]} 21. Qc1 {[%emt 0:00:25]}
e5 {[%emt 0:02:44]} 22. Nd2 {[%emt 0:00:09]} Bc6 {[%emt 0:00:06]} 23. f3 {
[%emt 0:02:49]} h5 {[%emt 0:00:42]} 24. Qc2 {[%emt 0:02:09]} Ra2 {[%emt 0:01:
27]} 25. f4 {[%emt 0:01:47]} f5 {[%emt 0:03:13]} 26. fxe5 {[%emt 0:01:27]} dxe5
{[%emt 0:00:05]} 27. Nxc4 {[%emt 0:00:12]} bxc4 {[%emt 0:00:14]} 28. Bxc4+ {
[%emt 0:00:01]} Bd5 {[%emt 0:00:02]} 29. Bxa2 {[%emt 0:00:02]} Bxa2 {[%emt 0:
00:01]} 30. Ra1 {[%emt 0:00:29]} Bd5 {[%emt 0:00:24]} 31. Qe2 {[%emt 0:00:26]}
Be4 {[%emt 0:00:58]} 32. Bg3 {[%emt 0:00:20]} Kh7 {[%emt 0:00:22]} 33. b4 {
[%emt 0:00:33]} f4 {[%emt 0:00:20]} 34. Be1 {[%emt 0:01:07]} fxe3 {[%emt 0:00:
11]} 35. Qxe3 {[%emt 0:00:03]} exd4 {[%emt 0:00:30]} 36. cxd4 {[%emt 0:00:08]}
Bxg2 {[%emt 0:00:08]} 37. Ra2 {[%emt 0:00:14]} Bd5 {[%emt 0:00:15]} 38. Ra5 {
[%emt 0:01:11]} Bh1 {[%emt 0:00:24]} 39. Qg3 {[%emt 0:00:44]} Nf6 {[%emt 0:00:
38]} 40. Rg5 Ne4 0-1

[Event "European Rapid Championship 2021"]
[Site "Katowice"]
[Date "2021.12.18"]
[Round "2.9"]
[White "Kozak, Antoni"]
[Black "Krawczyk, Wojciech"]
[Result "1-0"]
[ECO "D00"]
[WhiteElo "2356"]
[BlackElo "1868"]
[Annotator "ChessBase"]
[PlyCount "127"]
[EventDate "2021.12.18"]
[EventType "swiss"]
[EventCountry "POL"]
[SourceTitle "playchess.com"]
[Source "ChessBase"]
[SourceQuality "1"]
[TimeControl "900+10"]

1. d4 {[%emt 0:00:01]} d5 {[%emt 0:00:09]} 2. Bf4 {[%emt 0:00:03]} Nf6 {
[%emt 0:00:05]} 3. e3 {[%emt 0:00:03]} e6 {[%emt 0:00:03]} 4. Nd2 {[%emt 0:00:
39]} c5 {[%emt 0:00:26]} 5. c3 {[%emt 0:00:02]} Nc6 {[%emt 0:00:01]} 6. Ngf3 {
[%emt 0:00:06]} Bd6 {[%emt 0:00:34]} 7. Bg3 {[%emt 0:00:01]} O-O {[%emt 0:00:
07]} 8. Bd3 {[%emt 0:00:03]} Nh5 {[%emt 0:01:30]} 9. Ne5 {[%emt 0:03:41]} g6 {
[%emt 0:02:14]} 10. Nxc6 {[%emt 0:01:29]} bxc6 {[%emt 0:00:01]} 11. Bxd6 {
[%emt 0:00:02]} Qxd6 {[%emt 0:00:02]} 12. Qa4 {[%emt 0:00:49]} c4 {[%emt 0:02:
08]} 13. Be2 {[%emt 0:00:05]} Nf6 {[%emt 0:00:17]} 14. b3 {[%emt 0:00:21]} cxb3
{[%emt 0:00:38]} 15. axb3 {[%emt 0:00:03]} Bd7 {[%emt 0:00:06]} 16. Qa3 {
[%emt 0:02:06]} Qc7 {[%emt 0:01:01]} 17. O-O {[%emt 0:00:29]} a5 {[%emt 0:01:
50]} 18. c4 {[%emt 0:02:12]} Rfb8 {[%emt 0:01:57]} 19. Rfc1 {[%emt 0:00:07]}
Kg7 {[%emt 0:00:10]} 20. cxd5 {[%emt 0:00:10]} exd5 {[%emt 0:02:14]} 21. Rc5 {
[%emt 0:00:06]} Ne8 {[%emt 0:01:15]} 22. Rxa5 {[%emt 0:00:17]} Rxa5 {[%emt 0:
00:01]} 23. Qxa5 {[%emt 0:00:01]} Qxa5 {[%emt 0:00:01]} 24. Rxa5 {[%emt 0:00:
01]} Rb7 {[%emt 0:00:10]} 25. Bd3 {[%emt 0:00:32]} Nd6 {[%emt 0:00:17]} 26. Kf1
{[%emt 0:00:08]} f6 {[%emt 0:00:03]} 27. Ke2 {[%emt 0:00:05]} Kf7 {[%emt 0:00:
10]} 28. Kd1 {[%emt 0:00:02]} Bf5 {[%emt 0:00:19]} 29. Bxf5 {[%emt 0:00:08]}
Nxf5 {[%emt 0:00:02]} 30. Ra6 {[%emt 0:00:13]} Ne7 {[%emt 0:00:08]} 31. Kc2 {
[%emt 0:00:02]} Ke6 {[%emt 0:00:01]} 32. Nf3 {[%emt 0:00:21]} Kd7 {[%emt 0:00:
35]} 33. Ne1 {[%emt 0:00:02]} Nf5 {[%emt 0:00:24]} 34. Nd3 {[%emt 0:00:02]} Rc7
{[%emt 0:00:03]} 35. Nc5+ {[%emt 0:00:03]} Ke7 {[%emt 0:00:04]} 36. Ra8 {
[%emt 0:00:36]} Nh4 {[%emt 0:00:15]} 37. g3 {[%emt 0:00:06]} Nf3 {[%emt 0:00:
04]} 38. h4 {[%emt 0:00:05]} Nh2 {[%emt 0:00:02]} 39. Kd3 {[%emt 0:00:15]} Ng4
{[%emt 0:00:07]} 40. f3 {[%emt 0:00:05]} Nh6 {[%emt 0:00:04]} 41. g4 {[%emt 0:
00:06]} Nf7 {[%emt 0:00:01]} 42. Kc3 {[%emt 0:01:04]} g5 {[%emt 0:01:25]} 43.
h5 {[%emt 0:00:10]} Nh6 {[%emt 0:00:05]} 44. Rh8 {[%emt 0:01:14]} Kd6 {[%emt 0:
00:02]} 45. e4 {[%emt 0:00:45]} Re7 {[%emt 0:00:53]} 46. Kd3 {[%emt 0:00:28]}
Kc7 {[%emt 0:00:03]} 47. Rf8 {[%emt 0:00:40]} Rf7 {[%emt 0:00:39]} 48. exd5 {
[%emt 0:00:04]} cxd5 {[%emt 0:00:03]} 49. Ra8 {[%emt 0:00:11]} Kc6 {[%emt 0:00:
03]} 50. Ra6+ {[%emt 0:00:12]} Kb5 {[%emt 0:00:05]} 51. Rd6 {[%emt 0:00:02]}
Kb4 {[%emt 0:00:22]} 52. Rb6+ {[%emt 0:00:08]} Ka3 {[%emt 0:00:05]} 53. Kc3 {
[%emt 0:00:02]} Ka2 {[%emt 0:00:01]} 54. Kc2 {[%emt 0:00:10]} Ka3 {[%emt 0:00:
02]} 55. Kc3 {[%emt 0:00:27]} Ka2 {[%emt 0:00:02]} 56. b4 {[%emt 0:00:02]} Ng8
{[%emt 0:00:03]} 57. b5 {[%emt 0:00:16]} f5 {[%emt 0:00:03]} 58. Ra6+ {[%emt 0:
00:01]} Kb1 {[%emt 0:00:01]} 59. b6 {[%emt 0:00:01]} fxg4 {[%emt 0:00:03]} 60.
fxg4 {[%emt 0:00:03]} Nf6 {[%emt 0:00:02]} 61. b7 {[%emt 0:00:09]} Rxb7 {
[%emt 0:00:17]} 62. Nxb7 {[%emt 0:00:27]} Nxg4 {[%emt 0:00:03]} 63. Nc5 {
[%emt 0:00:01]} Nf2 {[%emt 0:00:07]} 64. Rh6 {[%emt 0:00:18]} 1-0

[Event "European Rapid Championship 2021"]
[Site "Katowice"]
[Date "2021.12.18"]
[Round "2.10"]
[White "Mirski, Michal"]
[Black "Kyc, Jerzy"]
[Result "0-1"]
[ECO "B91"]
[WhiteElo "1852"]
[BlackElo "2308"]
[Annotator "ChessBase"]
[PlyCount "102"]
[EventDate "2021.12.18"]
[EventType "swiss"]
[EventCountry "POL"]
[SourceTitle "playchess.com"]
[Source "ChessBase"]
[SourceQuality "1"]
[TimeControl "900+10"]

1. e4 {[%emt 0:00:02]} c5 {[%emt 0:00:06]} 2. Nf3 {[%emt 0:00:02]} d6 {[%emt 0:
00:01]} 3. d4 {[%emt 0:00:02]} cxd4 {[%emt 0:00:01]} 4. Nxd4 {[%emt 0:00:01]}
Nf6 {[%emt 0:00:01]} 5. Nc3 {[%emt 0:00:02]} a6 {[%emt 0:00:01]} 6. g3 {
[%emt 0:00:01]} e5 {[%emt 0:00:01]} 7. Nde2 {[%emt 0:00:01]} Be7 {[%emt 0:00:
01]} 8. Bg2 {[%emt 0:00:01]} O-O {[%emt 0:00:01]} 9. O-O {[%emt 0:00:02]} b5 {
[%emt 0:00:02]} 10. h3 {[%emt 0:00:05]} Bb7 {[%emt 0:00:02]} 11. Be3 {[%emt 0:
00:02]} Nbd7 {[%emt 0:00:05]} 12. a4 {[%emt 0:00:07]} b4 {[%emt 0:00:04]} 13.
Nd5 {[%emt 0:00:01]} Nxd5 {[%emt 0:00:03]} 14. exd5 {[%emt 0:00:02]} f5 {
[%emt 0:00:20]} 15. Qd2 {[%emt 0:01:05]} a5 {[%emt 0:00:06]} 16. f4 {[%emt 0:
00:03]} Bf6 {[%emt 0:03:40]} 17. c3 {[%emt 0:00:15]} bxc3 {[%emt 0:00:16]} 18.
Nxc3 {[%emt 0:00:03]} e4 {[%emt 0:00:24]} 19. g4 {[%emt 0:03:11]} g6 {[%emt 0:
00:05]} 20. g5 {[%emt 0:00:01]} Bg7 {[%emt 0:00:07]} 21. Bd4 {[%emt 0:00:16]}
Bxd4+ {[%emt 0:00:04]} 22. Qxd4 {[%emt 0:00:02]} Qb6 {[%emt 0:00:05]} 23. Qxb6
{[%emt 0:01:15]} Nxb6 {[%emt 0:00:01]} 24. Rfd1 {[%emt 0:00:06]} Rac8 {[%emt 0:
00:18]} 25. Rd4 {[%emt 0:00:20]} Kf7 {[%emt 0:01:39]} 26. Bf1 {[%emt 0:00:06]}
Ke7 {[%emt 0:00:11]} 27. Bb5 {[%emt 0:00:29]} Rc5 {[%emt 0:00:38]} 28. Rad1 {
[%emt 0:00:55]} h6 {[%emt 0:01:57]} 29. h4 {[%emt 0:01:20]} hxg5 {[%emt 0:00:
02]} 30. hxg5 {[%emt 0:00:00]} Rh8 {[%emt 0:00:27]} 31. Bc6 {[%emt 0:04:02]}
Bxc6 {[%emt 0:00:17]} 32. dxc6 {[%emt 0:00:02]} Rxc6 {[%emt 0:00:02]} 33. Nb5 {
[%emt 0:00:08]} Rd8 {[%emt 0:00:49]} 34. b3 {[%emt 0:00:33]} d5 {[%emt 0:00:12]
} 35. Kf2 {[%emt 0:00:07]} Rc2+ {[%emt 0:00:10]} 36. Ke3 {[%emt 0:01:06]} Rb2 {
[%emt 0:00:49]} 37. Rh1 {[%emt 0:00:30]} Rxb3+ {[%emt 0:00:03]} 38. Ke2 {
[%emt 0:00:13]} Rb2+ {[%emt 0:00:25]} 39. Rd2 {[%emt 0:01:42]} Nxa4 {[%emt 0:
01:30]} 40. Rh7+ {[%emt 0:00:07]} Ke6 {[%emt 0:00:05]} 41. Nd4+ {[%emt 0:00:50]
} Kd6 {[%emt 0:00:02]} 42. Rxb2 {[%emt 0:00:03]} Nxb2 {[%emt 0:00:07]} 43. Rg7
{[%emt 0:00:02]} Re8 {[%emt 0:01:56]} 44. Rxg6+ {[%emt 0:00:06]} Kc5 {[%emt 0:
00:01]} 45. Nxf5 {[%emt 0:00:13]} d4 {[%emt 0:00:07]} 46. Ra6 {[%emt 0:00:21]}
d3+ {[%emt 0:00:08]} 47. Kd2 {[%emt 0:00:19]} Nc4+ {[%emt 0:00:04]} 48. Kc3 {
[%emt 0:00:03]} d2 {[%emt 0:00:14]} 49. Ne3 {[%emt 0:02:26]} Nxe3 {[%emt 0:00:
10]} 50. Kxd2 {[%emt 0:00:02]} Nc4+ {[%emt 0:00:06]} 51. Ke2 {[%emt 0:00:02]}
Rf8 {[%emt 0:00:35]} 0-1

[Event "European Rapid Championship 2021"]
[Site "Katowice"]
[Date "2021.12.18"]
[Round "2.11"]
[White "Kosakowski, Jakub"]
[Black "Rog, Bartlomiej"]
[Result "1/2-1/2"]
[ECO "B52"]
[WhiteElo "2438"]
[BlackElo "1859"]
[Annotator "ChessBase"]
[PlyCount "86"]
[EventDate "2021.12.18"]
[EventType "swiss"]
[EventCountry "POL"]
[SourceTitle "playchess.com"]
[Source "ChessBase"]
[SourceQuality "1"]
[TimeControl "900+10"]

1. e4 {[%emt 0:00:06]} c5 {[%emt 0:00:00]} 2. Nf3 {[%emt 0:00:02]} d6 {[%emt 0:
00:01]} 3. Bb5+ {[%emt 0:00:04]} Bd7 {[%emt 0:00:04]} 4. Bxd7+ {[%emt 0:00:04]}
Qxd7 {[%emt 0:00:01]} 5. c4 {[%emt 0:00:04]} e5 {[%emt 0:00:02]} 6. Nc3 {
[%emt 0:00:05]} g6 {[%emt 0:00:10]} 7. O-O {[%emt 0:00:04]} Bg7 {[%emt 0:00:02]
} 8. d3 {[%emt 0:00:03]} Ne7 {[%emt 0:00:09]} 9. a3 {[%emt 0:00:07]} Nbc6 {
[%emt 0:00:05]} 10. Rb1 {[%emt 0:00:03]} a5 {[%emt 0:01:20]} 11. Bg5 {[%emt 0:
01:56]} f5 {[%emt 0:02:08]} 12. Bxe7 {[%emt 0:00:28]} Nxe7 {[%emt 0:00:04]} 13.
b4 {[%emt 0:00:03]} axb4 {[%emt 0:00:32]} 14. axb4 {[%emt 0:00:02]} O-O {
[%emt 0:00:05]} 15. Nd5 {[%emt 0:00:21]} Nxd5 {[%emt 0:02:15]} 16. cxd5 {
[%emt 0:00:04]} Bh6 {[%emt 0:03:21]} 17. bxc5 {[%emt 0:00:17]} dxc5 {[%emt 0:
00:04]} 18. Qb3 {[%emt 0:00:52]} Qd6 {[%emt 0:02:21]} 19. Qc3 {[%emt 0:05:58]}
Ra4 {[%emt 0:01:44]} 20. Qxe5 {[%emt 0:00:56]} Qxe5 {[%emt 0:00:15]} 21. Nxe5 {
[%emt 0:00:02]} fxe4 {[%emt 0:00:01]} 22. dxe4 {[%emt 0:00:32]} Rxe4 {[%emt 0:
00:04]} 23. Nd7 {[%emt 0:00:02]} Rf7 {[%emt 0:01:37]} 24. Nxc5 {[%emt 0:00:17]}
Re2 {[%emt 0:00:01]} 25. Rxb7 {[%emt 0:02:24]} Rxb7 {[%emt 0:01:58]} 26. Nxb7 {
[%emt 0:00:02]} Rd2 {[%emt 0:00:00]} 27. d6 {[%emt 0:00:39]} Bf8 {[%emt 0:00:
01]} 28. Nc5 {[%emt 0:00:10]} Bxd6 {[%emt 0:00:26]} 29. Ne4 {[%emt 0:00:01]}
Rd4 {[%emt 0:00:01]} 30. Re1 {[%emt 0:00:04]} Bb4 {[%emt 0:00:11]} 31. Rc1 {
[%emt 0:03:05]} Rxe4 {[%emt 0:00:04]} 32. Kf1 {[%emt 0:00:01]} Kf7 {[%emt 0:00:
16]} 33. g3 {[%emt 0:00:02]} h5 {[%emt 0:00:14]} 34. h4 {[%emt 0:00:14]} Kf6 {
[%emt 0:00:23]} 35. Rc6+ {[%emt 0:00:02]} Kf5 {[%emt 0:00:07]} 36. Kg2 {
[%emt 0:00:10]} Re2 {[%emt 0:00:13]} 37. Rc4 {[%emt 0:00:09]} Bd2 {[%emt 0:00:
37]} 38. Rc2 {[%emt 0:00:26]} Ke4 {[%emt 0:00:05]} 39. Rc6 {[%emt 0:00:04]} Be3
{[%emt 0:00:21]} 40. Re6+ {[%emt 0:00:10]} Kd3 {[%emt 0:00:02]} 41. Rxe3+ {
[%emt 0:00:03]} Rxe3 {[%emt 0:00:01]} 42. fxe3 {[%emt 0:00:01]} Kxe3 {[%emt 0:
00:01]} 43. g4 {[%emt 0:00:01]} Kf4 {[%emt 0:00:08]} 1/2-1/2

[Event "European Rapid Championship 2021"]
[Site "Katowice"]
[Date "2021.12.18"]
[Round "2.12"]
[White "Skurniak, Szymon"]
[Black "Kowalski, Igor"]
[Result "1/2-1/2"]
[ECO "B06"]
[WhiteElo "1851"]
[BlackElo "2295"]
[Annotator "ChessBase"]
[PlyCount "88"]
[EventDate "2021.12.18"]
[EventType "swiss"]
[EventCountry "POL"]
[SourceTitle "playchess.com"]
[Source "ChessBase"]
[SourceQuality "1"]
[TimeControl "900+10"]

1. e4 {[%emt 0:00:05]} g6 {[%emt 0:00:01]} 2. d4 {[%emt 0:00:05]} Bg7 {[%emt 0:
00:02]} 3. Nc3 {[%emt 0:00:02]} d6 {[%emt 0:00:02]} 4. Be3 {[%emt 0:00:05]} a6
{[%emt 0:00:02]} 5. g4 {[%emt 0:00:03]} b5 {[%emt 0:00:02]} 6. Bg2 {[%emt 0:00:
45]} Bb7 {[%emt 0:00:01]} 7. h4 {[%emt 0:00:02]} b4 {[%emt 0:00:57]} 8. Nce2 {
[%emt 0:00:01]} Nf6 {[%emt 0:00:17]} 9. Ng3 {[%emt 0:00:01]} h5 {[%emt 0:00:08]
} 10. gxh5 {[%emt 0:00:26]} Nxh5 {[%emt 0:00:02]} 11. Nxh5 {[%emt 0:00:48]}
Rxh5 {[%emt 0:00:11]} 12. Bf3 {[%emt 0:00:01]} Rh8 {[%emt 0:00:02]} 13. h5 {
[%emt 0:00:16]} gxh5 {[%emt 0:00:25]} 14. Rxh5 {[%emt 0:00:32]} Nd7 {[%emt 0:
00:37]} 15. e5 {[%emt 0:06:30]} Bxf3 {[%emt 0:02:53]} 16. Qxf3 {[%emt 0:01:07]}
Rxh5 {[%emt 0:03:11]} 17. Qxh5 {[%emt 0:00:01]} dxe5 {[%emt 0:00:02]} 18. Qg5 {
[%emt 0:02:34]} Kf8 {[%emt 0:00:12]} 19. O-O-O {[%emt 0:00:28]} e6 {[%emt 0:00:
06]} 20. Qxd8+ {[%emt 0:01:00]} Rxd8 {[%emt 0:00:02]} 21. dxe5 {[%emt 0:00:01]}
Bxe5 {[%emt 0:01:04]} 22. Bc5+ {[%emt 0:00:01]} Ke8 {[%emt 0:00:01]} 23. Bxb4 {
[%emt 0:00:01]} Rb8 {[%emt 0:00:01]} 24. Ba3 {[%emt 0:00:06]} Nb6 {[%emt 0:00:
14]} 25. b3 {[%emt 0:00:27]} Nd5 {[%emt 0:01:31]} 26. Ne2 {[%emt 0:00:07]} f5 {
[%emt 0:01:23]} 27. c4 {[%emt 0:00:09]} Ne7 {[%emt 0:02:07]} 28. f4 {[%emt 0:
01:40]} Bf6 {[%emt 0:00:07]} 29. Nd4 {[%emt 0:00:26]} Bxd4 {[%emt 0:03:20]} 30.
Rxd4 Ng6 {[%emt 0:00:07]} 31. Kd2 {[%emt 0:00:05]} Rd8 {[%emt 0:00:04]} 32.
Rxd8+ {[%emt 0:00:02]} Kxd8 {[%emt 0:00:01]} 33. Ke3 {[%emt 0:00:02]} Kd7 {
[%emt 0:00:03]} 34. Bb2 {[%emt 0:00:23]} c5 {[%emt 0:00:06]} 35. a3 {[%emt 0:
00:12]} Kc6 {[%emt 0:00:11]} 36. Bf6 {[%emt 0:00:11]} Kd6 {[%emt 0:00:29]} 37.
b4 {[%emt 0:00:33]} Kc6 {[%emt 0:00:15]} 38. Bc3 {[%emt 0:00:30]} Nh4 {[%emt 0:
00:27]} 39. Be5 {[%emt 0:00:18]} Ng2+ {[%emt 0:00:20]} 40. Kf2 {[%emt 0:00:01]}
Nh4 {[%emt 0:00:00]} 41. Ke3 {[%emt 0:00:01]} Ng6 {[%emt 0:00:01]} 42. Bf6 {
[%emt 0:00:16]} Kb6 {[%emt 0:00:37]} 43. Bd8+ {[%emt 0:00:05]} Kc6 {[%emt 0:00:
01]} 44. Bf6 {[%emt 0:00:48]} Kd6 {[%emt 0:00:00]} 1/2-1/2